fUST/lending_fUST_20240930
["ID","MTS","AMOUNT","RATE_DAILY","PERIOD"]
[339563108,1727695851625,-518.7,0.00013972,2]
[339563109,1727695851635,-500.0,0.00013972,2]
[339563110,1727695851645,-703.02,0.00013972,2]
[339563111,1727695851654,-157.72628676,0.00013972,2]
[339563112,1727695851664,-573.67,0.00013972,2]
[339563113,1727695851674,-500.0,0.00013972,2]
[339563114,1727695851685,-500.0,0.00013972,2]
[339563115,1727695851695,-709.59,0.00013972,2]
[339563116,1727695851705,-500.0,0.00013972,2]
[339563117,1727695851714,-500.0,0.00013972,2]
[339563118,1727695851724,-500.0,0.00013972,2]
[339563119,1727695851734,-500.0,0.00013972,2]
[339563120,1727695851744,-500.0,0.00013972,2]
[339563121,1727695851754,-500.0,0.00013972,2]
[339563122,1727695851765,-500.0,0.00013972,2]
[339563123,1727695851775,-500.0,0.00013972,2]
[339563124,1727695851785,-2337.58,0.00013972,2]
[339563125,1727695851795,-500.0,0.00013972,2]
[339563126,1727695851807,-500.0,0.00013972,2]
[339563127,1727695851818,-500.0,0.00013972,2]
[339563128,1727695851828,-500.0,0.00013972,2]
[339563129,1727695851838,-511.02,0.00013972,2]
[339563130,1727695851848,-500.0,0.00013972,2]
[339563131,1727695851859,-500.0,0.00013972,2]
[339563132,1727695851869,-574.8785576,0.00013972,2]
[339563133,1727695851879,-500.0,0.00013972,2]
[339563134,1727695851889,-500.0,0.00013972,2]
[339563135,1727695851899,-500.0,0.00013972,2]
[339563136,1727695851910,-1716.93,0.00013972,2]
[339563137,1727695851920,-500.0,0.00013972,2]
[339563138,1727695851930,-500.0,0.00013972,2]
[339563139,1727695851940,-500.0,0.00013972,2]
[339563140,1727695851949,-500.0,0.00013972,2]
[339563141,1727695851960,-561.72638254,0.00013972,2]
[339563142,1727695851971,-500.0,0.00013972,2]
[339563143,1727695851981,-2179.73,0.00013972,2]
[339563144,1727695851990,-500.0,0.00013972,2]
[339563145,1727695852001,-1996.44,0.00013972,2]
[339563146,1727695852011,-500.0,0.00013972,2]
[339563147,1727695852020,-539.98488515,0.00013972,2]
[339563148,1727695852031,-371.96544666,0.00013972,2]
[339563149,1727695852041,-285.03028866,0.00013972,2]
[339563150,1727695852053,-500.0,0.00013972,2]
[339563151,1727695852066,-500.0,0.00013972,2]
[339563152,1727695852077,-500.0,0.00013972,2]
[339563153,1727695852087,-500.0,0.00013972,2]
[339563154,1727695852097,-522.39,0.00013972,2]
[339563155,1727695852107,-500.0,0.00013972,2]
[339563156,1727695852117,-500.0,0.00013972,2]
[339563157,1727695852128,-168.76852912,0.00013972,2]
[339563158,1727695852138,-500.0,0.00013972,2]
[339563159,1727695852148,-500.0,0.00013972,2]
[339563160,1727695852159,-500.0,0.00013972,2]
[339563161,1727695852169,-500.0,0.00013972,2]
[339563162,1727695852180,-497.02703912,0.00013972,2]
[339563163,1727695852190,-793.46,0.00013972,2]
[339563164,1727695852199,-500.0,0.00013972,2]
[339563165,1727695852215,-500.0,0.00013972,2]
[339563166,1727695852225,-500.0,0.00013972,2]
[339563167,1727695852234,-534.31,0.00013972,2]
[339563168,1727695852244,-500.0,0.00013972,2]
[339563169,1727695852255,-500.0,0.00013972,2]
[339563170,1727695852265,-500.0,0.00013972,2]
[339563171,1727695852276,-500.0,0.00013972,2]
[339563172,1727695852289,-500.0,0.00013972,2]
[339563173,1727695852302,-500.0,0.00013972,2]
[339563174,1727695852312,-500.0,0.00013972,2]
[339563175,1727695852323,-500.0,0.00013972,2]
[339563176,1727695852334,-475.99164486,0.00013972,2]
[339563177,1727695852344,-500.0,0.00013972,2]
[339563178,1727695852353,-500.0,0.00013972,2]
[339563179,1727695852363,-500.0,0.00013972,2]
[339563180,1727695852374,-2318.18,0.00013972,2]
[339563181,1727695852384,-500.0,0.00013972,2]
[339563182,1727695852395,-444.38,0.00013972,2]
[339563183,1727695852405,-500.0,0.00013972,2]
[339563184,1727695852416,-500.0,0.00013972,2]
[339563185,1727695852427,-500.0,0.00013972,2]
[339563186,1727695852438,-500.0,0.00013972,2]
[339563187,1727695852449,-152.59626865,0.00013972,2]
[339563188,1727695852459,-500.0,0.00013972,2]
[339563189,1727695852468,-151.0,0.00013972,2]
[339563190,1727695852479,-151.0,0.00013972,2]
[339563191,1727695852488,-500.0,0.00013972,2]
[339563192,1727695852498,-500.0,0.00013972,2]
[339563193,1727695852507,-500.0,0.00013972,2]
[339563194,1727695852518,-500.0,0.00013972,2]
[339563195,1727695852529,-500.0,0.00013972,2]
[339563196,1727695852539,-1001.06,0.00013972,2]
[339563197,1727695852549,-562.19,0.00013972,2]
[339563198,1727695852560,-500.0,0.00013972,2]
[339563199,1727695852571,-500.0,0.00013972,2]
[339563200,1727695852581,-500.0,0.00013972,2]
[339563201,1727695852591,-691.67,0.00013972,2]
[339563202,1727695852601,-1550.73,0.00013972,2]
[339563203,1727695852611,-500.0,0.00013972,2]
[339563204,1727695852620,-500.0,0.00013972,2]
[339563205,1727695852630,-500.0,0.00013972,2]
[339563206,1727695852639,-260.500174,0.00013972,2]
[339563207,1727695852648,-260.500174,0.00013972,2]
[339563208,1727695852658,-500.0,0.00013972,2]
[339563209,1727695852667,-500.0,0.00013972,2]
[339563210,1727695852677,-500.0,0.00013972,2]
[339563211,1727695852687,-500.0,0.00013972,2]
[339563212,1727695852697,-522.94,0.00013972,2]
[339563213,1727695852708,-500.0,0.00013972,2]
[339563214,1727695852718,-1058.04,0.00013972,2]
[339563215,1727695852727,-500.0,0.00013972,2]
[339563216,1727695852737,-500.0,0.00013972,2]
[339563217,1727695852747,-500.0,0.00013972,2]
[339563218,1727695852758,-500.0,0.00013972,2]
[339563219,1727695852768,-500.0,0.00013972,2]
[339563220,1727695852778,-620.32,0.00013972,2]
[339563221,1727695852787,-500.0,0.00013972,2]
[339563222,1727695852799,-1603.045429,0.00013972,2]
[339563223,1727695852808,-500.0,0.00013972,2]
[339563224,1727695852818,-1603.045429,0.00013972,2]
[339563225,1727695852829,-500.0,0.00013972,2]
[339563226,1727695852838,-500.0,0.00013972,2]
[339563227,1727695852848,-151.0,0.00013972,2]
[339563228,1727695852858,-151.0,0.00013972,2]
[339563229,1727695852868,-1603.045429,0.00013972,2]
[339563230,1727695852878,-1603.045429,0.00013972,2]
[339563231,1727695852888,-500.0,0.00013972,2]
[339563232,1727695852898,-1321.98,0.00013972,2]
[339563233,1727695852909,-500.0,0.00013972,2]
[339563234,1727695852918,-478.874546,0.00013972,2]
[339563235,1727695852928,-478.874546,0.00013972,2]
[339563236,1727695852938,-478.874546,0.00013972,2]
[339563237,1727695852948,-478.874546,0.00013972,2]
[339563238,1727695852959,-500.0,0.00013972,2]
[339563239,1727695852969,-500.0,0.00013972,2]
[339563240,1727695852979,-500.0,0.00013972,2]
[339563241,1727695852990,-151.0,0.00013972,2]
[339563242,1727695853194,-151.0,0.00013972,2]
[339563243,1727695853207,-151.0,0.00013972,2]
[339563244,1727695853216,-151.0,0.00013972,2]
[339563245,1727695853227,-500.0,0.00013972,2]
[339563246,1727695853236,-500.0,0.00013972,2]
[339563247,1727695853247,-151.0,0.00013972,2]
[339563248,1727695853256,-224.015403,0.00013972,2]
[339563249,1727695853266,-604.42,0.00013972,2]
[339563250,1727695853277,-500.0,0.00013972,2]
[339563251,1727695853287,-151.0,0.00013972,2]
[339563252,1727695853296,-263.322434,0.00013972,2]
[339563253,1727695853308,-500.0,0.00013972,2]
[339563254,1727695853318,-151.0,0.00013972,2]
[339563255,1727695853327,-151.0,0.00013972,2]
[339563256,1727695853337,-500.0,0.00013972,2]
[339563257,1727695853347,-500.0,0.00013972,2]
[339563258,1727695853356,-207.433056,0.00013972,2]
[339563259,1727695853366,-2000.0,0.00013972,2]
[339563260,1727695853376,-2000.0,0.00013972,2]
[339563261,1727695853386,-2045.307947,0.00013972,2]
[339563262,1727695853396,-500.0,0.00013972,2]
[339563263,1727695853406,-500.0,0.00013972,2]
[339563264,1727695853416,-151.0,0.00013972,2]
[339563265,1727695853427,-151.0,0.00013972,2]
[339563266,1727695853436,-500.0,0.00013972,2]
[339563267,1727695853446,-500.0,0.00013972,2]
[339563268,1727695853456,-153.184812,0.00013972,2]
[339563269,1727695853465,-500.0,0.00013972,2]
[339563270,1727695853474,-500.0,0.00013972,2]
[339563271,1727695853483,-500.0,0.00013972,2]
[339563272,1727695853493,-659.700849,0.00013972,2]
[339563273,1727695853503,-659.700849,0.00013972,2]
[339563274,1727695853513,-245.99865928,0.00013972,2]
[339563275,1727695853523,-500.0,0.00013972,2]
[339563276,1727695853533,-500.0,0.00013972,2]
[339563277,1727695853543,-500.0,0.00013972,2]
[339563278,1727695853552,-659.700849,0.00013972,2]
[339563279,1727695853561,-659.700849,0.00013972,2]
[339563280,1727695853571,-613.52,0.00013972,2]
[339563281,1727695853580,-1385.497729,0.00013972,2]
[339563282,1727695853590,-1385.497729,0.00013972,2]
[339563283,1727695853599,-500.0,0.00013972,2]
[339563284,1727695853609,-151.0,0.00013972,2]
[339563285,1727695853619,-500.0,0.00013972,2]
[339563286,1727695853629,-151.0,0.00013972,2]
[339563287,1727695853638,-151.0,0.00013972,2]
[339563288,1727695853648,-1385.497729,0.00013972,2]
[339563289,1727695853658,-1385.497729,0.00013972,2]
[339563290,1727695853669,-500.0,0.00013972,2]
[339563291,1727695853678,-500.0,0.00013972,2]
[339563292,1727695853688,-500.0,0.00013972,2]
[339563293,1727695853698,-500.0,0.00013972,2]
[339563294,1727695853707,-500.0,0.00013972,2]
[339563295,1727695853717,-151.0,0.00013972,2]
[339563296,1727695853727,-151.0,0.00013972,2]
[339563297,1727695853736,-500.0,0.00013972,2]
[339563298,1727695853746,-500.0,0.00013972,2]
[339563299,1727695853755,-500.0,0.00013972,2]
[339563300,1727695853764,-500.0,0.00013972,2]
[339563301,1727695853774,-500.0,0.00013972,2]
[339563302,1727695853784,-500.0,0.00013972,2]
[339563303,1727695853794,-588.51,0.00013972,2]
[339563304,1727695853805,-500.0,0.00013972,2]
[339563305,1727695853814,-500.0,0.00013972,2]
[339563306,1727695853823,-500.0,0.00013972,2]
[339563307,1727695853833,-151.0,0.00013972,2]
[339563308,1727695853842,-151.0,0.00013972,2]
[339563309,1727695853852,-151.0,0.00013972,2]
[339563310,1727695853862,-500.0,0.00013972,2]
[339563311,1727695853872,-449.82732769,0.00013972,2]
[339563312,1727695853881,-306.10876644,0.00013972,2]
[339563313,1727695853891,-500.0,0.00013972,2]
[339563314,1727695853902,-500.0,0.00013972,2]
[339563315,1727695853911,-500.0,0.00013972,2]
[339563316,1727695853922,-1195.9,0.00013972,2]
[339563317,1727695853932,-500.0,0.00013972,2]
[339563318,1727695853942,-500.0,0.00013972,2]
[339563319,1727695853951,-500.0,0.00013972,2]
[339563320,1727695853961,-4237.45,0.00013972,2]
[339563321,1727695853971,-500.0,0.00013972,2]
[339563322,1727695853980,-500.0,0.00013972,2]
[339563323,1727695853990,-575.79421762,0.00013972,2]
[339563324,1727695854000,-643.82,0.00013972,2]
[339563325,1727695854010,-500.0,0.00013972,2]
[339563326,1727695854019,-859.74,0.00013972,2]
[339563327,1727695854029,-500.0,0.00013972,2]
[339563328,1727695854038,-500.0,0.00013972,2]
[339563329,1727695854048,-500.0,0.00013972,2]
[339563330,1727695854058,-500.0,0.00013972,2]
[339563331,1727695854068,-500.0,0.00013972,2]
[339563332,1727695854077,-500.0,0.00013972,2]
[339563333,1727695854087,-500.0,0.00013972,2]
[339563334,1727695854097,-1846.03,0.00013972,2]
[339563335,1727695854106,-500.0,0.00013972,2]
[339563336,1727695854117,-1125.91,0.00013972,2]
[339563337,1727695854128,-2616.73,0.00013972,2]
[339563338,1727695854137,-500.0,0.00013972,2]
[339563339,1727695854147,-510.16542253,0.00013972,2]
[339563340,1727695854156,-500.0,0.00013972,2]
[339563341,1727695854166,-500.0,0.00013972,2]
[339563342,1727695854176,-361.43701957,0.00013972,2]
[339563343,1727695854185,-500.0,0.00013972,2]
[339563344,1727695854195,-637.7495225,0.00013972,2]
[339563345,1727695854210,-500.0,0.00013972,2]
[339563346,1727695854219,-500.0,0.00013972,2]
[339563347,1727695854228,-500.0,0.00013972,2]
[339563348,1727695854238,-500.0,0.00013972,2]
[339563349,1727695854249,-500.0,0.00013972,2]
[339563350,1727695854259,-1105.35,0.00013972,2]
[339563351,1727695854268,-500.0,0.00013972,2]
[339563352,1727695854278,-500.0,0.00013972,2]
[339563353,1727695854288,-500.0,0.00013972,2]
[339563354,1727695854297,-151.0,0.00013972,2]
[339563355,1727695854310,-151.0,0.00013972,2]
[339563356,1727695854319,-500.0,0.00013972,2]
[339563357,1727695854328,-151.0,0.00013972,2]
[339563358,1727695854338,-151.0,0.00013972,2]
[339563359,1727695854347,-500.0,0.00013972,2]
[339563360,1727695854357,-500.0,0.00013972,2]
[339563361,1727695854367,-151.0,0.00013972,2]
[339563362,1727695854376,-500.0,0.00013972,2]
[339563363,1727695854386,-151.0,0.00013972,2]
[339563364,1727695854395,-565.94,0.00013972,2]
[339563365,1727695854405,-500.0,0.00013972,2]
[339563366,1727695854415,-500.0,0.00013972,2]
[339563367,1727695854424,-606.78,0.00013972,2]
[339563368,1727695854434,-342.58026692,0.00013972,2]
[339563369,1727695854443,-500.0,0.00013972,2]
[339563370,1727695854453,-579.63,0.00013972,2]
[339563371,1727695854462,-500.0,0.00013972,2]
[339563372,1727695854472,-1230.750696,0.00013972,2]
[339563373,1727695854481,-1230.750696,0.00013972,2]
[339563374,1727695854491,-500.0,0.00013972,2]
[339563375,1727695854501,-650.02,0.00013972,2]
[339563376,1727695854511,-1230.750696,0.00013972,2]
[339563377,1727695854521,-500.0,0.00013972,2]
[339563378,1727695854531,-1230.750696,0.00013972,2]
[339563379,1727695854541,-500.0,0.00013972,2]
[339563380,1727695854550,-222.0098,0.00013972,2]
[339563381,1727695854561,-5850.330687,0.00013972,2]
[339563382,1727695854570,-5850.330687,0.00013972,2]
[339563383,1727695854580,-949.342855,0.00013972,2]
[339563384,1727695854590,-949.342855,0.00013972,2]
[339563385,1727695854600,-5850.330687,0.00013972,2]
[339563386,1727695854610,-5850.330687,0.00013972,2]
[339563387,1727695854620,-500.0,0.00013972,2]
[339563388,1727695854630,-949.342855,0.00013972,2]
[339563389,1727695854640,-949.342855,0.00013972,2]
[339563390,1727695854650,-500.0,0.00013972,2]
[339563391,1727695854659,-500.0,0.00013972,2]
[339563392,1727695854669,-500.0,0.00013972,2]
[339563393,1727695854678,-500.0,0.00013972,2]
[339563394,1727695854687,-1394.58,0.00013972,2]
[339563395,1727695854696,-500.0,0.00013972,2]
[339563396,1727695854706,-223.450707,0.00013972,2]
[339563397,1727695854716,-223.450707,0.00013972,2]
[339563398,1727695854726,-500.0,0.00013972,2]
[339563399,1727695854735,-223.450707,0.00013972,2]
[339563400,1727695854745,-223.450707,0.00013972,2]
[339563401,1727695854755,-151.0,0.00013972,2]
[339563402,1727695854764,-500.0,0.00013972,2]
[339563403,1727695854774,-500.0,0.00013972,2]
[339563404,1727695854783,-500.0,0.00013972,2]
[339563405,1727695854793,-688.87,0.00013972,2]
[339563406,1727695854803,-500.0,0.00013972,2]
[339563407,1727695854812,-505.54388792,0.00013972,2]
[339563408,1727695854821,-500.0,0.00013972,2]
[339563409,1727695854831,-891.03,0.00013972,2]
[339563410,1727695854841,-500.0,0.00013972,2]
[339563411,1727695854850,-500.0,0.00013972,2]
[339563412,1727695854860,-500.0,0.00013972,2]
[339563413,1727695854870,-500.0,0.00013972,2]
[339563414,1727695854880,-500.0,0.00013972,2]
[339563415,1727695854889,-500.0,0.00013972,2]
[339563416,1727695854899,-500.0,0.00013972,2]
[339563417,1727695854908,-151.0,0.00013972,2]
[339563418,1727695854918,-679.03,0.00013972,2]
[339563419,1727695854927,-151.0,0.00013972,2]
[339563420,1727695854938,-986.82,0.00013972,2]
[339563421,1727695854947,-151.0,0.00013972,2]
[339563422,1727695854957,-500.0,0.00013972,2]
[339563423,1727695854966,-500.0,0.00013972,2]
[339563424,1727695854975,-500.0,0.00013972,2]
[339563425,1727695854985,-500.0,0.00013972,2]
[339563426,1727695854994,-156.386614,0.00013972,2]
[339563427,1727695855004,-500.0,0.00013972,2]
[339563428,1727695855013,-500.0,0.00013972,2]
[339563429,1727695855022,-500.0,0.00013972,2]
[339563430,1727695855031,-616.83152426,0.00013972,2]
[339563431,1727695855041,-500.0,0.00013972,2]
[339563432,1727695855050,-500.0,0.00013972,2]
[339563433,1727695855060,-2289.390068,0.00013972,2]
[339563434,1727695855070,-2289.390068,0.00013972,2]
[339563435,1727695855080,-2289.390068,0.00013972,2]
[339563436,1727695855089,-151.0,0.00013972,2]
[339563437,1727695855098,-420.058658,0.00013972,2]
[339563438,1727695855108,-420.058658,0.00013972,2]
[339563439,1727695855117,-151.0,0.00013972,2]
[339563440,1727695855127,-151.0,0.00013972,2]
[339563441,1727695855136,-500.0,0.00013972,2]
[339563442,1727695855146,-972.36,0.00013972,2]
[339563443,1727695855155,-500.0,0.00013972,2]
[339563444,1727695855165,-500.0,0.00013972,2]
[339563445,1727695855174,-2289.390068,0.00013972,2]
[339563446,1727695855185,-2289.390068,0.00013972,2]
[339563447,1727695855194,-420.058658,0.00013972,2]
[339563448,1727695855207,-151.0,0.00013972,2]
[339563449,1727695855216,-2289.390068,0.00013972,2]
[339563450,1727695855225,-420.058658,0.00013972,2]
[339563451,1727695855234,-162.430967,0.00013972,2]
[339563452,1727695855244,-199.390227,0.00013972,2]
[339563453,1727695855254,-500.0,0.00013972,2]
[339563454,1727695855264,-199.390227,0.00013972,2]
[339563455,1727695855273,-199.390227,0.00013972,2]
[339563456,1727695855284,-178.31367879,0.00013972,2]
[339563457,1727695855295,-1181.41,0.00013972,2]
[339563458,1727695855306,-199.390227,0.00013972,2]
[339563459,1727695855315,-199.390227,0.00013972,2]
[339563460,1727695855325,-1300.25,0.00013972,2]
[339563461,1727695855334,-199.390227,0.00013972,2]
[339563462,1727695855343,-500.0,0.00013972,2]
[339563463,1727695855353,-518.1299624,0.00013972,2]
[339563464,1727695855362,-776.03,0.00013972,2]
[339563465,1727695855372,-500.0,0.00013972,2]
[339563466,1727695855382,-500.0,0.00013972,2]
[339563467,1727695855392,-500.0,0.00013972,2]
[339563468,1727695855401,-1468.71,0.00013972,2]
[339563469,1727695855411,-500.0,0.00013972,2]
[339563470,1727695855420,-500.0,0.00013972,2]
[339563471,1727695855429,-500.0,0.00013972,2]
[339563472,1727695855438,-500.0,0.00013972,2]
[339563473,1727695855448,-500.0,0.00013972,2]
[339563474,1727695855457,-500.0,0.00013972,2]
[339563475,1727695855467,-500.0,0.00013972,2]
[339563476,1727695855476,-500.0,0.00013972,2]
[339563477,1727695855486,-894.141748,0.00013972,2]
[339563478,1727695855496,-894.141748,0.00013972,2]
[339563479,1727695855506,-500.0,0.00013972,2]
[339563480,1727695855515,-894.141748,0.00013972,2]
[339563481,1727695855525,-500.0,0.00013972,2]
[339563482,1727695855535,-894.141748,0.00013972,2]
[339563483,1727695855544,-1320.34,0.00013972,2]
[339563484,1727695855555,-894.141748,0.00013972,2]
[339563485,1727695855573,-151.0,0.00013972,2]
[339563486,1727695855584,-500.0,0.00013972,2]
[339563487,1727695855593,-894.141748,0.00013972,2]
[339563488,1727695855602,-151.0,0.00013972,2]
[339563489,1727695855612,-151.0,0.00013972,2]
[339563490,1727695855622,-792.1,0.00013972,2]
[339563491,1727695855632,-500.0,0.00013972,2]
[339563492,1727695855641,-151.0,0.00013972,2]
[339563493,1727695855651,-500.0,0.00013972,2]
[339563494,1727695855660,-517.35708308,0.00013972,2]
[339563495,1727695855669,-556.11,0.00013972,2]
[339563496,1727695855679,-500.0,0.00013972,2]
[339563497,1727695855688,-500.0,0.00013972,2]
[339563498,1727695855698,-500.0,0.00013972,2]
[339563499,1727695855707,-1506.41,0.00013972,2]
[339563500,1727695855716,-170.1685,0.00013972,2]
[339563501,1727695855726,-170.1685,0.00013972,2]
[339563502,1727695855736,-698.71,0.00013972,2]
[339563503,1727695855745,-170.1685,0.00013972,2]
[339563504,1727695855755,-500.0,0.00013972,2]
[339563505,1727695855764,-20750.68,0.00013972,2]
[339563506,1727695855774,-500.0,0.00013972,2]
[339563507,1727695855783,-500.0,0.00013972,2]
[339563508,1727695855792,-170.1685,0.00013972,2]
[339563509,1727695855804,-170.1685,0.00013972,2]
[339563510,1727695855813,-500.0,0.00013972,2]
[339563511,1727695855823,-170.1685,0.00013972,2]
[339563512,1727695855832,-258.13325224,0.00013972,2]
[339563513,1727695855841,-500.0,0.00013972,2]
[339563514,1727695855850,-500.0,0.00013972,2]
[339563515,1727695855859,-500.0,0.00013972,2]
[339563516,1727695855868,-500.0,0.00013972,2]
[339563517,1727695855878,-500.0,0.00013972,2]
[339563518,1727695855887,-3025.85,0.00013972,2]
[339563519,1727695855896,-706.17,0.00013972,2]
[339563520,1727695855905,-500.0,0.00013972,2]
[339563521,1727695855915,-500.0,0.00013972,2]
[339563522,1727695855925,-500.0,0.00013973,2]
[339563523,1727695855934,-549.80656059,0.00013973,2]
[339563524,1727695855943,-500.0,0.00013973,2]
[339563525,1727695855953,-500.0,0.00013973,2]
[339563526,1727695855962,-151.75054518,0.00013973,2]
[339563527,1727695855971,-500.0,0.00013973,2]
[339563528,1727695855980,-383.09768856,0.00013973,2]
[339563529,1727695855989,-500.0,0.00013973,2]
[339563530,1727695855998,-500.0,0.00013973,2]
[339563531,1727695856008,-500.0,0.00013973,2]
[339563532,1727695856017,-500.0,0.00013973,2]
[339563533,1727695856026,-500.0,0.00013973,2]
[339563534,1727695856035,-500.0,0.00013973,2]
[339563535,1727695856044,-500.0,0.00013973,2]
[339563536,1727695856058,-507.70077374,0.00013973,2]
[339563537,1727695856067,-500.0,0.00013973,2]
[339563538,1727695856075,-500.0,0.00013973,2]
[339563539,1727695856084,-500.0,0.00013973,2]
[339563540,1727695856093,-168.617411,0.00013973,2]
[339563541,1727695856102,-478.874546,0.00013973,2]
[339563542,1727695856112,-478.874546,0.00013973,2]
[339563543,1727695856122,-151.0,0.00013973,2]
[339563544,1727695856131,-151.0,0.00013973,2]
[339563545,1727695856140,-151.0,0.00013973,2]
[339563546,1727695856150,-151.0,0.00013973,2]
[339563547,1727695856159,-659.700849,0.00013973,2]
[339563548,1727695856169,-659.700849,0.00013973,2]
[339563549,1727695856178,-1385.497729,0.00013973,2]
[339563550,1727695856187,-1385.497729,0.00013973,2]
[339563551,1727695856196,-500.0,0.00013999,2]
[339563552,1727695856210,-150.112233,0.00014,2]
[339563553,1727695856219,-150.112233,0.00014,2]
[339563554,1727695856228,-1000.0,0.00014,2]
[339563555,1727695856238,-1000.0,0.00014,2]
[339563556,1727695856249,-362.32799969,0.00014,2]
[339563557,1727695856258,-1000.0,0.00014,2]
[339563558,1727695856267,-1000.0,0.00014,2]
[339563559,1727695856276,-1000.0,0.00014,2]
[339563560,1727695856286,-1000.0,0.00014,2]
[339563561,1727695856296,-647.82269529,0.00014,2]
[339563562,1727695856307,-1000.0,0.00014,2]
[339563563,1727695856315,-1000.0,0.00014,2]
[339563564,1727695856325,-300.97594335,0.00014,2]
[339563565,1727695856334,-1038.64285696,0.00014,2]
[339563566,1727695856343,-175.11015426,0.00014,2]
[339563567,1727695856352,-166.666666,0.00014019,2]
[339563568,1727695856361,-500.0,0.00014027,2]
[339563569,1727695856370,-1500.0,0.00014027,2]
[339563570,1727695856379,-697.83561304,0.00014027,2]
[339563571,1727695856388,-1500.0,0.00014027,2]
[339563572,1727695856397,-1500.0,0.00014027,2]
[339563573,1727695856407,-1500.0,0.00014027,2]
[339563574,1727695856416,-375.22448258,0.00014027,2]
[339563575,1727695856426,-1008.2655006,0.00014027,2]
[339563576,1727695856435,-1500.0,0.00014027,2]
[339563577,1727695856444,-500.0,0.00014054,2]
[339563578,1727695856453,-769.49030785,0.00014055,2]
[339563579,1727695856462,-2000.0,0.00014055,2]
[339563580,1727695856471,-2000.0,0.00014055,2]
[339563581,1727695856480,-340.10878567,0.00014055,2]
[339563582,1727695856490,-2000.0,0.00014055,2]
[339563583,1727695856499,-500.0,0.00014082,2]
[339563584,1727695856508,-1706.67993932,0.00014082,2]
[339563585,1727695856517,-2500.0,0.00014082,2]
[339563586,1727695856527,-2500.0,0.00014082,2]
[339563587,1727695856536,-150.112233,0.000141,2]
[339563588,1727695856545,-150.112233,0.000141,2]
[339563589,1727695856555,-572.0,0.00014109,2]
[339563590,1727695856564,-500.0,0.00014109,2]
[339563591,1727695856573,-1800.78011353,0.0001411,2]
[339563592,1727695856581,-3000.0,0.0001411,2]
[339563593,1727695856590,-151.0,0.0001411,2]
[339563594,1727695856600,-293.839188,0.0001411,2]
[339563595,1727695856610,-293.839188,0.0001411,2]
[339563596,1727695856619,-170.280696,0.0001411,2]
[339563597,1727695856628,-170.280696,0.0001411,2]
[339563598,1727695856638,-481.836223,0.0001411,2]
[339563599,1727695856647,-3500.0,0.00014137,2]
[339563600,1727695856657,-4000.0,0.00014164,2]
[339563601,1727695856666,-4720.57148759,0.00014165,2]
[339563602,1727695856675,-4500.0,0.00014192,2]
[339563603,1727695856686,-150.112233,0.000142,2]
[339563604,1727695856695,-5000.0,0.00014219,2]
[339563605,1727695856704,-151.0,0.00014226,2]
[339563606,1727695856714,-151.0,0.00014226,2]
[339563607,1727695856723,-445.107113,0.00014226,2]